bitfinex-derivatives/quotes_SOLF0:USTF0_20220102
["timestamp","ask_amount","ask_price","bid_price","bid_amount"]
[1641136141994,12.15743647,175.31,175.25,1.27539669]
[1641136142893,12.15743647,175.31,175.25,5.45139669]
[1641136143997,14.93709087,175.32,175.26,1.27539669]
[1641136144798,12.15743647,175.31,175.25,1.27539669]
[1641136147200,12.15743647,175.3,175.25,1.27539669]
[1641136148202,2.7796544,175.31,175.25,1.27539669]
[1641136148405,2.7796544,175.31,175.25,7.48839669]
[1641136149002,2.7796544,175.31,175.26,1.27539669]
[1641136149003,14.93709087,175.31,175.26,1.27539669]
[1641136149702,2.7796544,175.31,175.26,1.27539669]
[1641136152404,12.15743647,175.33,175.26,1.27539669]
[1641136153408,12.15743647,175.32,175.26,1.27539669]
[1641136154610,12.15743647,175.32,175.26,3.0]
[1641136155012,12.15743647,175.32,175.25,1.27539669]
[1641136155412,12.15743647,175.32,175.27,1.27539669]
[1641136156411,12.15743647,175.32,175.26,7.169]
[1641136156613,12.15743647,175.32,175.26,4.169]
[1641136157012,12.15743647,175.32,175.27,1.27539669]
[1641136162821,12.15743647,175.32,175.25,1.27539669]
[1641136163321,12.15743647,175.32,175.27,27.66479]
[1641136163522,12.15743647,175.32,175.27,33.65779]
[1641136164220,12.15743647,175.32,175.28,1.27539669]
[1641136165522,12.15743647,175.32,175.28,6.03139669]
[1641136166626,12.15743647,175.31,175.28,4.756]
[1641136167527,12.87746224,175.34,175.28,4.756]
[1641136167528,12.15743647,175.32,175.28,4.756]
[1641136168629,12.15743647,175.31,175.28,4.756]
[1641136170031,12.15743647,175.32,175.28,4.756]
[1641136170634,12.15743647,175.32,175.24,70.20002157]
[1641136171438,12.15743647,175.31,175.25,1.27592457]
[1641136175740,12.15743647,175.3,175.25,1.27592457]
[1641136176441,12.15743647,175.31,175.25,1.27592457]
[1641136176643,12.15743647,175.31,175.25,6.77192457]
[1641136177241,12.15743647,175.32,175.26,1.27592457]
[1641136177840,12.15743647,175.32,175.26,6.03392457]
[1641136178241,12.15743647,175.32,175.26,4.758]
[1641136178441,12.15743647,175.31,175.26,4.758]
[1641136179245,12.15743647,175.28,175.2,12.16873157]
[1641136179642,12.15743647,175.28,175.21,27.66479]
[1641136180043,12.15743647,175.27,175.21,27.66479]
[1641136180243,12.15743647,175.27,175.2,12.16873157]
[1641136180644,17.86064167,175.27,175.2,12.16873157]
[1641136180846,12.15743647,175.26,175.19,1.27584552]
[1641136181644,12.15743647,175.26,175.21,4.0518362]
[1641136181645,12.15743647,175.25,175.21,4.0518362]
[1641136182950,18.32943647,175.25,175.21,4.0518362]
[1641136183352,12.15743647,175.24,175.2,4.0518362]
[1641136183755,15.15743647,175.24,175.2,4.0518362]
[1641136183951,12.15743647,175.24,175.2,4.0518362]
[1641136184552,21.58115538,175.26,175.19,4.0518362]
[1641136184553,12.15743647,175.23,175.19,4.0518362]
[1641136186155,3.0,175.25,175.14,27.66479]
[1641136186355,5.70369314,175.26,175.14,27.66479]
[1641136186556,3.0,175.25,175.14,27.66479]
[1641136187356,5.70434386,175.24,175.14,27.66479]
[1641136187559,33.36913386,175.24,175.14,27.66479]
[1641136188154,30.4617,175.23,175.14,27.66479]
[1641136188757,30.4617,175.23,175.15,31.0673]
[1641136188956,30.4617,175.23,175.15,36.8253]
[1641136190756,30.4617,175.23,175.16,3.0]
[1641136190958,30.4617,175.23,175.15,36.8253]
[1641136191559,30.4617,175.23,175.17,27.66479]
[1641136192257,30.4617,175.23,175.17,21.18149443]
[1641136193460,2.77617031,175.22,175.2,4.0518362]
[1641136193657,2.77617031,175.22,175.2,9.5108362]
[1641136194061,2.77617031,175.22,175.2,5.459]
[1641136194262,2.77617031,175.23,175.21,1.27577463]
[1641136194861,2.77617031,175.23,175.22,4.05158759]
[1641136195963,2.77617031,175.23,175.21,5.32736222]
[1641136197864,12.15743647,175.25,175.21,1.27577463]
[1641136198066,4.05147126,175.23,175.21,1.27577463]
[1641136198665,2.77534536,175.25,175.22,4.05156335]
[1641136199465,12.15743647,175.24,175.21,5.32733798]
[1641136201169,2.77534536,175.25,175.23,4.05156335]
[1641136201370,2.77534536,175.25,175.23,9.24756335]
[1641136201772,12.15743647,175.27,175.23,9.24756335]
[1641136202272,12.15743647,175.28,175.24,5.32733798]
[1641136208680,2.77534536,175.29,175.22,27.66479]
[1641136209774,2.77534536,175.29,175.22,31.84379]
[1641136212479,5.77534536,175.29,175.22,4.179]
[1641136212678,2.77534536,175.29,175.2,4.05156335]
[1641136213280,17.93278183,175.29,175.19,31.8102]
[1641136213679,27.66479,175.28,175.19,31.8102]
[1641136214178,4.03154558,175.25,175.19,31.8102]
[1641136215379,4.03154558,175.24,175.19,31.8102]
[1641136216078,12.15743647,175.25,175.21,4.05156335]
[1641136216777,14.93278183,175.25,175.21,4.05156335]
[1641136219386,2.77534536,175.25,175.19,35.86176335]
[1641136221688,30.44013536,175.25,175.19,35.86176335]
[1641136222087,27.66479,175.25,175.19,35.86176335]
[1641136222287,27.66479,175.25,175.2,5.32413225]
[1641136222489,27.66479,175.25,175.2,12.12813225]
[1641136222889,27.66479,175.25,175.2,10.85556335]
[1641136225090,29.5138,175.26,175.2,10.85556335]
[1641136225491,2.76735236,175.25,175.2,10.85556335]
[1641136225691,30.43214236,175.25,175.2,10.85556335]
[1641136226591,27.66479,175.25,175.2,10.85556335]
[1641136227393,27.66479,175.25,175.2,6.804]
[1641136227593,27.66479,175.25,175.19,35.86176335]
[1641136228194,27.66479,175.25,175.2,4.05156335]
[1641136228395,27.66479,175.25,175.2,9.52356335]
[1641136228795,27.66479,175.25,175.2,10.79615254]
[1641136229496,27.66479,175.25,175.2,9.52356335]
[1641136231299,39.82222647,175.28,175.2,9.52356335]
[1641136231698,4.03959297,175.26,175.22,4.05156335]
[1641136236002,4.03959297,175.25,175.21,5.32418597]
[1641136239007,4.03959297,175.24,175.21,1.27262262]
[1641136239610,4.03959297,175.26,175.21,1.27262262]
[1641136249324,4.03959297,175.24,175.21,1.27262262]
[1641136251130,4.44,175.26,175.21,1.27262262]
[1641136251529,7.44,175.26,175.21,1.27262262]
[1641136252130,15.15743647,175.25,175.17,13.44135419]
[1641136252333,42.82222647,175.25,175.17,19.54573352]
[1641136253234,4.05204519,175.2,175.16,50.61343352]
[1641136254035,31.8466,175.23,175.17,1.27262262]
[1641136254236,31.8466,175.23,175.17,7.41462262]
[1641136254635,35.88148686,175.23,175.17,10.17688686]
[1641136255236,4.03488686,175.23,175.17,10.17688686]
[1641136255436,27.66479,175.25,175.17,6.142]
[1641136256036,4.03489852,175.23,175.17,10.17689852]
[1641136256737,2.7641341,175.24,175.17,6.142]
[1641136257539,4.03481421,175.23,175.17,10.17681421]
[1641136258040,27.66479,175.25,175.17,10.17681421]
[1641136258238,55.32958,175.25,175.17,10.17681421]
[1641136259340,4.0348182,175.23,175.17,10.17681421]
[1641136259840,27.66479,175.25,175.17,10.17681421]
[1641136260044,4.0344577,175.25,175.19,7.03481421]
[1641136260240,4.0344577,175.25,175.19,31.69960421]
[1641136260842,29.8143,175.26,175.19,31.69960421]
[1641136261647,33.84838532,175.26,175.2,5.30565995]
[1641136262447,29.8143,175.26,175.2,5.30565995]
[1641136262947,33.84840832,175.26,175.2,5.30565995]
[1641136263648,29.8143,175.26,175.2,5.30565995]
[1641136264747,29.8143,175.26,175.19,27.66479]
[1641136264949,33.84849702,175.26,175.19,27.66479]
[1641136265350,29.8143,175.26,175.2,5.30502722]
[1641136265548,29.8143,175.26,175.2,10.00602722]
[1641136266148,33.84840107,175.26,175.2,4.701]
[1641136266952,33.84840107,175.26,175.19,27.66479]
[1641136267151,29.8143,175.26,175.2,4.03409861]
[1641136267854,33.84841028,175.26,175.2,5.30494185]
[1641136268653,29.8143,175.26,175.2,31.69888861]
[1641136269353,2.77501829,175.25,175.23,4.03409861]
[1641136270359,43.90369104,175.28,175.2,56.94149]
[1641136270758,12.87589104,175.28,175.22,3.0]
[1641136270956,2.7750136,175.27,175.24,4.05121616]
[1641136272159,2.7750136,175.27,175.24,7.05121616]
[1641136272359,12.15364849,175.28,175.22,9.069]
[1641136272761,12.15364849,175.31,175.23,13.44507414]
[1641136273560,12.87145328,175.32,175.27,4.05034462]
[1641136274364,12.1510396,175.31,175.25,1.27634257]
[1641136274960,12.87145328,175.32,175.27,4.05035084]
[1641136275563,2.77397498,175.32,175.24,57.08339]
[1641136275760,14.92449928,175.32,175.28,4.05017477]
[1641136276562,12.1505243,175.32,175.24,69.25212157]
[1641136277363,12.1505243,175.31,175.27,4.05028188]
[1641136278264,12.87104777,175.33,175.24,57.08339]
[1641136278666,40.53583777,175.33,175.24,57.08339]
[1641136279066,12.15126988,175.31,175.27,4.05042329]
[1641136279866,12.15126988,175.31,175.24,29.4186]
[1641136280568,12.15126988,175.29,175.25,5.32708328]
[1641136281168,12.87104777,175.32,175.24,29.4186]
[1641136281868,12.15229948,175.29,175.25,5.32706417]
[1641136282468,12.87104777,175.32,175.21,12.16873157]
[1641136282669,12.87104777,175.32,175.22,30.6455]
[1641136283172,12.15229813,175.29,175.25,4.05076604]
[1641136283972,12.87104777,175.32,175.24,1.27629742]
[1641136284572,12.15233178,175.29,175.25,4.05077726]
[1641136285173,15.87104777,175.32,175.25,4.05077726]
[1641136285374,12.87104777,175.32,175.24,1.27629875]
[1641136285876,12.15231988,175.29,175.25,4.05077329]
[1641136286477,15.87104777,175.32,175.23,6.714]
[1641136286676,2.77397498,175.31,175.24,1.27629756]
[1641136287076,2.77397498,175.31,175.22,30.6455]
[1641136287280,12.15230163,175.29,175.25,4.05076721]
[1641136287779,12.87104777,175.32,175.23,1.276298]
[1641136287979,12.87104777,175.32,175.23,5.848298]
[1641136288781,12.15228943,175.29,175.25,4.05076314]
[1641136289581,12.87104777,175.32,175.24,27.66479]
[1641136289781,12.87104777,175.32,175.27,4.0503291]
[1641136289782,12.1509873,175.31,175.27,4.0503291]
[1641136290284,12.87104777,175.32,175.24,27.66479]
[1641136291185,12.15109033,175.31,175.27,4.05036344]
[1641136291784,12.87104777,175.32,175.24,27.66479]
[1641136291984,12.87104777,175.32,175.24,32.71979]
[1641136292384,12.15133561,175.31,175.27,4.0504452]
[1641136292988,12.15133561,175.31,175.24,32.71979]
[1641136293590,12.15133561,175.31,175.27,4.05039201]
[1641136294289,12.15133561,175.31,175.24,27.66479]
[1641136294891,12.15133561,175.31,175.27,4.05045798]
[1641136295090,12.15133561,175.31,175.27,10.69845798]
[1641136295792,12.15133561,175.31,175.27,6.648]
[1641136296593,12.87104777,175.32,175.27,10.69834209]
[1641136297093,12.15094336,175.31,175.27,6.648]
[1641136297695,12.87104777,175.32,175.27,10.69830169]
[1641136298995,12.15086299,175.31,175.27,6.648]
[1641136299596,12.87104777,175.32,175.27,4.0502938]
[1641136300096,12.87104777,175.32,175.23,12.16873157]
[1641136300303,12.15156558,175.3,175.26,4.05052186]
[1641136301102,39.81635558,175.3,175.26,4.05052186]
[1641136301300,27.66479,175.3,175.23,1.27632214]
[1641136301502,12.1523004,175.29,175.25,4.0507668]
[1641136302501,2.77397498,175.29,175.25,1.2762989]
[1641136303103,12.15228015,175.29,175.25,4.05076005]
[1641136304003,2.77405493,175.29,175.27,4.05039023]
[1641136304603,27.66479,175.3,175.24,5.828]
[1641136305404,2.77404545,175.29,175.27,4.05038162]
[1641136306508,32.0012,175.34,175.24,5.828]
[1641136306706,12.15130025,175.31,175.23,18.27255254]
[1641136306908,12.15130025,175.31,175.24,5.504]
[1641136307209,27.66479,175.3,175.24,5.504]
[1641136307408,27.66479,175.3,175.27,4.0504481]
[1641136307807,12.15130025,175.31,175.27,4.0504481]
[1641136308508,12.15130025,175.31,175.23,18.27255254]
[1641136308710,2.77411858,175.29,175.23,18.27255254]
[1641136309111,12.87185839,175.33,175.27,4.05040374]
[1641136309309,27.66479,175.3,175.27,4.05040374]
[1641136309910,2.77406979,175.29,175.23,19.54888649]
[1641136310610,12.15060899,175.29,175.25,4.050203]
[1641136311614,56.81209,175.3,175.22,30.6455]
[1641136311812,2.77404142,175.29,175.22,30.6455]
[1641136312212,12.15048434,175.29,175.25,4.0501736]
[1641136312811,56.81209,175.3,175.22,30.6455]
[1641136313014,2.77409613,175.29,175.22,30.6455]
[1641136313712,12.15089285,175.29,175.25,4.05029762]
[1641136313911,12.15089285,175.29,175.25,10.38829762]
[1641136314513,14.92502923,175.29,175.25,6.338]
[1641136315212,27.66479,175.32,175.28,4.04951235]
[1641136316113,2.77320075,175.31,175.29,4.0493972]
[1641136316315,2.77320075,175.31,175.29,9.5693972]
[1641136316714,27.66479,175.32,175.29,5.52]
[1641136317216,2.77351755,175.31,175.29,9.56990171]
[1641136318014,12.14968637,175.33,175.29,5.52]
[1641136318818,91.09427149,175.37,175.31,4.04956715]
[1641136319020,12.14870145,175.35,175.31,4.04956715]
[1641136319722,12.14870145,175.35,175.3,32.1074]
[1641136319919,12.14870145,175.35,175.31,1.2764267]
[1641136320520,2.77314954,175.36,175.3,32.1074]
[1641136320720,14.92109359,175.36,175.32,4.04931468]
[1641136321323,14.92109359,175.36,175.31,1.27644394]
[1641136321925,14.92109359,175.36,175.32,4.04930936]
[1641136322722,14.92109359,175.36,175.31,1.27644462]
[1641136323122,14.92109359,175.36,175.32,4.04924385]
[1641136323927,27.66479,175.37,175.31,1.27644981]
[1641136324525,27.66479,175.37,175.3,32.1074]
[1641136324726,14.92042594,175.36,175.32,4.04921958]
[1641136325328,27.66479,175.37,175.31,6.23845293]
[1641136325926,27.66479,175.37,175.31,1.27645293]
[1641136326427,14.9204393,175.36,175.32,5.32567488]
[1641136327125,27.66479,175.37,175.31,1.27645148]
[1641136327326,27.66479,175.37,175.31,5.72145148]
[1641136327827,27.66479,175.37,175.32,5.32568187]
[1641136328029,14.92047115,175.36,175.32,5.32568187]
[1641136328428,14.92047115,175.36,175.3,32.1074]
[1641136329329,27.66479,175.37,175.3,32.1074]
[1641136329529,27.66479,175.37,175.32,4.04924529]
[1641136329730,27.66479,175.39,175.32,4.04924529]
[1641136329930,32.34758149,175.4,175.32,4.04924529]
[1641136329931,32.34758149,175.4,175.32,3.0]
[1641136330131,2.77235563,175.36,175.34,7.04884542]
[1641136330330,2.77235563,175.36,175.34,13.35584542]
[1641136330531,5.563e-05,175.36,175.34,10.35584542]
[1641136331233,32.34758149,175.42,175.34,6.307]
[1641136331436,12.14585901,175.39,175.35,4.04861967]
[1641136331631,12.14585901,175.39,175.35,7.04861967]
[1641136331832,12.14585901,175.39,175.35,4.04861967]
[1641136332232,12.14585901,175.4,175.36,4.04835102]
[1641136333135,12.14585901,175.4,175.34,33.97179]
[1641136333738,12.14585901,175.4,175.36,4.0483489]
[1641136334336,12.14585901,175.4,175.34,27.66479]
[1641136334537,12.14585901,175.4,175.35,4.965]
[1641136335136,12.14585901,175.4,175.36,4.04836932]
[1641136335737,12.14585901,175.4,175.35,4.965]
[1641136335937,27.66479,175.42,175.35,4.965]
[1641136336739,27.66479,175.42,175.34,27.66479]
[1641136336740,27.66479,175.42,175.34,26.15238492]
[1641136340841,12.14585901,175.4,175.36,4.00519653]
[1641136343048,12.14585901,175.41,175.37,4.00519653]
[1641136343548,12.14585901,175.43,175.39,4.00519653]
[1641136344351,12.14585901,175.42,175.38,4.00519653]
[1641136344950,12.14585901,175.42,175.39,4.00519653]
[1641136345151,12.14585901,175.43,175.39,4.00519653]
[1641136350953,12.14585901,175.44,175.39,4.00519653]
[1641136351457,12.14585901,175.43,175.39,4.00519653]
[1641136354060,18.04085901,175.43,175.39,4.00519653]
[1641136354658,3.0,175.4,175.35,12.16873157]
[1641136355058,15.14585901,175.4,175.32,12.16873157]
[1641136355265,3.0,175.39,175.32,12.16873157]
[1641136355460,8.909,175.39,175.32,12.16873157]
[1641136355958,12.14585901,175.37,175.29,12.16873157]
[1641136356760,12.14585901,175.37,175.29,18.27289415]
[1641136360262,12.14585901,175.37,175.3,3.0]
[1641136360463,12.14585901,175.37,175.29,12.16873157]
[1641136360666,57.83289,175.4,175.28,30.66479]
[1641136360667,12.14585901,175.39,175.28,30.66479]
[1641136360865,12.14585901,175.39,175.28,27.66479]
[1641136361464,12.14585901,175.39,175.28,30.66479]
[1641136362167,27.66479,175.37,175.28,30.66479]
[1641136362665,12.14585901,175.39,175.28,30.66479]
[1641136362868,12.14585901,175.39,175.28,27.66479]
[1641136363871,69.97874901,175.4,175.28,42.83352157]
[1641136364168,27.66479,175.37,175.28,42.83352157]
[1641136364767,27.66479,175.37,175.28,39.83352157]
[1641136365669,27.66479,175.37,175.3,12.16873157]
[1641136365871,12.14585901,175.38,175.3,12.16873157]
[1641136366570,12.14585901,175.38,175.31,3.0]
[1641136366970,12.14585901,175.38,175.31,8.154]
[1641136367574,12.14585901,175.38,175.31,5.154]
[1641136370574,12.14585901,175.39,175.31,17.32273157]
[1641136371275,14.91745361,175.39,175.32,1.27685695]
[1641136371876,2.7715946,175.39,175.32,13.44558852]
[1641136372376,2.7715946,175.39,175.32,41.11037852]
[1641136372577,2.7715946,175.39,175.33,12.16873157]
[1641136373277,14.91745361,175.41,175.33,19.54967458]
[1641136378489,14.91745361,175.41,175.33,47.21446458]
[1641136378985,14.91745361,175.41,175.34,1.27685695]
[1641136385195,14.91745361,175.41,175.33,19.54938147]
[1641136386401,14.91745361,175.41,175.33,13.44558852]
[1641136386598,2.7715946,175.41,175.33,1.27685695]
[1641136388601,2.7715946,175.41,175.32,1.27685695]
[1641136389399,2.7715946,175.41,175.32,28.94164695]
[1641136389998,2.7715946,175.41,175.33,1.27685695]
[1641136390604,2.7715946,175.41,175.33,6.97177993]
[1641136390803,12.14585901,175.4,175.38,3.0]
[1641136391004,12.14585901,175.4,175.38,8.702]
[1641136391306,12.14585901,175.4,175.38,5.702]
[1641136391503,12.14585901,175.4,175.39,27.66479]
[1641136391704,12.14585901,175.4,175.38,5.702]
[1641136391903,12.14585901,175.47,175.39,12.16873157]
[1641136393104,12.14585901,175.46,175.38,23.97445843]
[1641136393503,12.14585901,175.46,175.4,27.66479]
[1641136397103,12.14585901,175.46,175.4,21.1898437]
[1641136398203,12.14585901,175.46,175.39,29.9144]
[1641136398811,12.14585901,175.47,175.39,42.08313157]
[1641136402010,29.378,175.48,175.39,29.9144]
[1641136402710,32.378,175.48,175.39,29.9144]
[1641136403210,29.378,175.48,175.39,29.9144]
[1641136403410,27.66479,175.46,175.39,29.9144]
[1641136404916,29.378,175.48,175.39,29.9144]
[1641136407118,32.378,175.48,175.39,29.9144]
[1641136407516,32.378,175.48,175.4,27.66479]
[1641136407716,29.378,175.48,175.4,27.66479]
[1641136407916,29.378,175.48,175.39,29.9144]
[1641136411420,29.378,175.48,175.42,27.66479]
[1641136417525,12.14585901,175.45,175.41,4.0207058]
[1641136420026,12.14585901,175.46,175.42,4.0207058]
[1641136420827,12.14585901,175.45,175.41,4.0207058]
[1641136423831,12.14585901,175.46,175.42,4.0207058]
[1641136424031,7.98585901,175.46,175.42,10.6807058]
[1641136424230,0.00585901,175.46,175.42,13.6807058]
[1641136424431,0.00585901,175.46,175.44,3.0]
[1641136424630,32.34758149,175.5,175.44,3.0]
[1641136424832,10.07988717,175.51,175.44,3.0]
[1641136425030,2.45988717,175.51,175.45,31.9272]
[1641136425231,2.45988717,175.51,175.44,3.0]
[1641136425431,2.45988717,175.51,175.47,3.0]
[1641136425637,1.31988717,175.51,175.48,27.66479]
[1641136425831,32.34758149,175.54,175.48,27.66479]
[1641136426032,27.66479,175.57,175.5,4.04498563]
[1641136429638,27.66479,175.57,175.49,31.5588]
[1641136430239,27.66479,175.57,175.49,34.5588]
[1641136430437,27.66479,175.57,175.49,31.5588]
[1641136433142,2.76479016,175.56,175.52,4.04498563]
[1641136435745,2.76479016,175.56,175.55,27.66479]
[1641136436347,2.76479016,175.58,175.55,27.66479]
[1641136436746,2.76479016,175.58,175.54,4.04498563]
[1641136437347,32.34758149,175.62,175.54,4.04498563]
[1641136437550,32.34758149,175.62,175.56,3.0]
[1641136437747,32.34758149,175.62,175.61,27.66479]
[1641136438647,16.34758149,175.62,175.61,27.66479]
[1641136439047,16.34758149,175.62,175.58,27.66479]
[1641136439249,2.76441152,175.67,175.6,4.04498563]
[1641136439747,27.66479,175.66,175.6,4.04498563]
[1641136439953,34.09279,175.66,175.6,4.04498563]
[1641136440351,34.09279,175.66,175.59,5.326065]
[1641136441450,2.76441152,175.65,175.58,5.326065]
[1641136442149,4.04311985,175.59,175.58,4.28107937]
[1641136442449,2.76441152,175.65,175.58,4.28107937]
[1641136442853,14.3535142,175.68,175.58,1.28107937]
[1641136443453,2.76279118,175.69,175.55,1.28107937]
[1641136443653,27.66479,175.67,175.58,27.66479]
[1641136444951,27.66479,175.67,175.59,1.28107937]
[1641136445151,2.76279118,175.66,175.59,1.28107937]
[1641136446552,12.82190336,175.66,175.59,1.28107937]
[1641136447154,2.76279118,175.66,175.59,1.28107937]
[1641136448355,12.82020395,175.69,175.59,7.3923135]
[1641136449757,27.66479,175.67,175.59,7.3923135]
[1641136450457,12.82020395,175.66,175.59,1.28107937]
[1641136451361,2.76279118,175.66,175.61,3.0]
[1641136451758,2.76279118,175.66,175.62,27.66479]
[1641136452158,2.76279118,175.69,175.63,1.28107937]
[1641136453761,27.66479,175.7,175.62,27.66479]
[1641136457768,30.8559,175.73,175.62,27.66479]
[1641136459369,30.8559,175.73,175.63,3.0]
[1641136459571,30.8559,175.73,175.62,27.66479]
[1641136459770,11.93288016,175.71,175.63,19.32448554]
[1641136460470,11.93288016,175.7,175.63,1.28110285]
[1641136461772,11.93288016,175.69,175.63,1.28110285]
[1641136461975,18.30888016,175.69,175.63,1.28110285]
[1641136462573,14.69311971,175.68,175.63,1.28110285]
[1641136463275,19.19811971,175.68,175.63,1.28110285]
[1641136463474,16.43788016,175.68,175.63,1.28110285]
[1641136464177,2.76023955,175.67,175.63,1.28110285]
[1641136464977,11.93288016,175.69,175.63,1.28110285]
[1641136465676,11.93288016,175.68,175.63,1.28110285]
[1641136466478,11.93288016,175.69,175.63,1.28110285]
[1641136467279,11.93288016,175.69,175.64,3.0]
[1641136467479,11.93288016,175.69,175.63,1.28110285]
[1641136467882,2.76023955,175.7,175.63,19.32444006]
[1641136468479,2.76023955,175.7,175.63,22.32444006]
[1641136468680,2.76023955,175.7,175.63,19.32444006]
[1641136469082,2.76023955,175.7,175.63,28.34744006]
[1641136469488,2.76023955,175.7,175.63,25.34744006]
[1641136470288,2.76023955,175.7,175.64,13.21398301]
[1641136471187,2.76023955,175.7,175.64,11.93288016]
[1641136471789,2.76023955,175.7,175.64,13.21398301]
[1641136472391,2.76023955,175.7,175.65,11.93288016]
[1641136473189,2.76023955,175.7,175.64,13.21398301]
[1641136475293,2.76023955,175.7,175.65,11.93288016]
[1641136476096,2.76023955,175.7,175.64,13.21398301]
[1641136476293,9.58623955,175.7,175.64,13.21398301]
[1641136476692,12.58623955,175.7,175.64,13.21398301]
[1641136476893,9.58623955,175.7,175.64,13.21398301]
[1641136477095,3.0,175.68,175.63,1.28110285]
[1641136477298,5.76023955,175.69,175.63,1.28110285]
[1641136477492,3.0,175.67,175.63,1.28110285]
[1641136477791,5.76023955,175.69,175.63,1.28110285]
[1641136477993,27.66479,175.66,175.63,1.28110285]
[1641136478393,27.66479,175.66,175.6,1.28110285]
[1641136479395,27.66479,175.66,175.57,19.30594022]
[1641136483202,31.1768,175.67,175.58,7.0]
[1641136483401,11.93288016,175.69,175.58,8.767]
[1641136483604,30.9844,175.68,175.58,4.767]
[1641136483802,11.93288016,175.7,175.58,4.767]
[1641136484005,11.93288016,175.7,175.62,27.66479]
[1641136484202,11.93288016,175.7,175.62,33.55279]
[1641136484402,14.69321961,175.7,175.62,45.48567016]
[1641136485404,14.69321961,175.7,175.63,1.28110285]
[1641136488108,11.93288016,175.69,175.61,19.32461889]
[1641136488710,11.93288016,175.69,175.61,23.32461889]
[1641136488912,11.93288016,175.69,175.62,3.0]
[1641136489111,11.93288016,175.69,175.61,19.32461889]
[1641136489313,14.69321961,175.7,175.62,11.93288016]
[1641136489917,2.76033945,175.7,175.64,11.93288016]
[1641136492916,14.69321961,175.7,175.63,1.28110285]
[1641136493517,20.45021961,175.7,175.63,1.28110285]
[1641136494116,11.93288016,175.69,175.61,19.32456134]
[1641136494917,2.76033945,175.7,175.63,11.93288016]
[1641136499123,39.59767016,175.71,175.63,11.93288016]
[1641136499323,27.66479,175.71,175.61,1.28110285]
[1641136500126,27.66479,175.71,175.62,3.0]
[1641136500326,27.66479,175.71,175.62,8.499]
[1641136501025,27.66479,175.71,175.63,1.28110285]
[1641136501825,27.66479,175.71,175.63,6.96615117]
[1641136502227,27.66479,175.71,175.64,27.66479]
[1641136502426,27.66479,175.71,175.64,60.26689285]
[1641136503228,27.66479,175.71,175.67,4.02288657]
[1641136505635,27.66479,175.71,175.66,4.02288657]
[1641136506232,27.66479,175.71,175.65,5.30398942]
[1641136508534,27.66479,175.71,175.66,4.02288657]
[1641136509132,2.75965343,175.7,175.69,4.02288657]
[1641136509934,27.66479,175.71,175.65,19.3242724]
[1641136510134,27.66479,175.71,175.66,11.93288016]
[1641136510837,27.66479,175.71,175.7,4.0404954]
[1641136511837,30.42459067,175.71,175.68,4.0404954]
[1641136512037,36.43459067,175.71,175.68,4.0404954]
[1641136512637,2.75980067,175.7,175.69,4.0404954]
[1641136515540,2.75980067,175.7,175.68,4.0404954]
[1641136516243,27.66479,175.71,175.69,4.0404954]
[1641136516440,3.0,175.7,175.69,4.0404954]
[1641136517241,5.76008852,175.7,175.67,4.0404954]
[1641136517643,2.76008852,175.7,175.67,4.0404954]
[1641136518044,2.76008852,175.69,175.67,4.0404954]
[1641136518649,27.66479,175.71,175.63,19.32424954]
[1641136518947,2.76019013,175.7,175.63,19.32424954]
[1641136519646,12.12436709,175.7,175.66,4.0414557]
[1641136520249,12.12436709,175.7,175.63,1.28110285]
[1641136520250,27.66479,175.67,175.62,19.32459041]
[1641136520849,27.66479,175.67,175.62,13.21398301]
[1641136521050,2.76052796,175.66,175.65,4.04168147]
[1641136521553,5.76052796,175.66,175.65,4.04168147]
[1641136521751,3.0,175.66,175.62,19.32458571]
[1641136521952,4.747,175.66,175.62,19.32458571]
[1641136522351,2.76108963,175.65,175.63,4.0421152]
[1641136523254,2.76109418,175.66,175.59,19.32458571]
[1641136524054,55.32958,175.67,175.63,4.04212458]
[1641136524654,2.76110559,175.66,175.59,19.32458571]
[1641136525259,55.32958,175.67,175.59,19.32458571]
[1641136525457,4.04184773,175.65,175.64,4.04184773]
[1641136526159,2.7609195,175.66,175.6,11.93288016]
[1641136526858,55.32958,175.67,175.64,4.04187258]
[1641136527457,55.32958,175.67,175.6,11.93288016]
[1641136527657,2.76082004,175.66,175.6,11.93288016]
[1641136528159,55.32958,175.67,175.64,4.0418692]
[1641136528560,3.0,175.65,175.64,4.0418692]
[1641136528958,5.76108173,175.66,175.63,4.04210802]
[1641136529658,3.0,175.66,175.59,19.32458571]
[1641136529859,2.76121287,175.65,175.62,4.04222723]
[1641136530458,55.32958,175.67,175.58,39.59767016]
[1641136530659,2.76111197,175.66,175.63,4.04213551]